fUSD/lending_fUSD_20251017
["ID","MTS","AMOUNT","RATE_DAILY","PERIOD"]
[391705377,1760736651758,-151.0,0.00039909,30]
[391705378,1760736651767,-151.0,0.00039909,30]
[391705379,1760736651776,-500.0,0.00039913,10]
[391705380,1760736651786,-500.0,0.00039948,10]
[391705381,1760736651796,-2272.44983091,0.00039969,34]
[391705382,1760736651806,-1024.85447797,0.0003997,15]
[391705383,1760736651816,-500.0,0.00039973,5]
[391705384,1760736651825,-300.0,0.00039999,10]
[391705385,1760736651835,-151.0,0.0004,2]
[391705386,1760736651844,-1000.0,0.0004,30]
[391705387,1760736651854,-1000.0,0.0004,30]
[391705388,1760736651867,-445963.22918349,0.0004,2]
[391705389,1760736651882,-477.12749073,0.0004,30]
[391705390,1760736651891,-414.41037173,0.0004,7]
[391705391,1760736651901,-410.73016393,0.0004,2]
[391705392,1760736651911,-2607.95569,0.0004,90]
[391705393,1760736651920,-4042.3347584,0.0004,14]
[391705394,1760736651930,-337.82366631,0.0004,120]
[391705395,1760736651939,-54551.11979059,0.0004,120]
[391705396,1760736651950,-5009.64074741,0.0004,10]
[391705397,1760736651960,-1856.13164766,0.0004,120]
[391705398,1760736651970,-661.86217465,0.0004,30]
[391705399,1760736651979,-927.74466825,0.0004,120]
[391705400,1760736651989,-13845.13717553,0.0004,120]
[391705401,1760736651999,-2299.99999103,0.0004,2]
[391705402,1760736652008,-961.82348917,0.0004,7]
[391705403,1760736652018,-204.41360584,0.0004,30]
[391705404,1760736652038,-996.39564586,0.0004,20]
[391705405,1760736652047,-2306.70272164,0.0004,120]
[391705406,1760736652058,-384.00634793,0.0004,2]
[391705407,1760736652067,-108264.82668771,0.0004,30]
[391705408,1760736652077,-2291.5609313,0.0004,120]
[391705409,1760736652086,-719.184267,0.0004,30]
[391705410,1760736652096,-519.06717968,0.0004,120]
[391705411,1760736652106,-2673.75435802,0.0004,120]
[391705412,1760736652115,-1989.66198057,0.0004,120]
[391705413,1760736652125,-231.51852236,0.0004,120]
[391705414,1760736652135,-215.21766616,0.0004,2]
[391705415,1760736652144,-7555.62184563,0.0004,120]
[391705416,1760736652154,-1133.31713148,0.0004,120]
[391705417,1760736652163,-1198.11783255,0.0004,120]
[391705418,1760736652173,-983.89767249,0.0004,2]
[391705419,1760736652183,-495.24685724,0.0004,120]
[391705420,1760736652193,-1105.0024428,0.0004,30]
[391705421,1760736652202,-2596.59128746,0.0004,30]
[391705422,1760736652212,-11500.95686108,0.0004,120]
[391705423,1760736652221,-500.0,0.0004,30]
[391705424,1760736652231,-2014.78105189,0.0004,120]
[391705425,1760736652240,-1523.00248362,0.0004,120]
[391705426,1760736652250,-151.0,0.0004,120]
[391705427,1760736652259,-151.0,0.0004,120]
[391705428,1760736652269,-151.0,0.0004,120]
[391705430,1760736652278,-151.0,0.0004,120]
[391705431,1760736652288,-151.0,0.0004,120]
[391705432,1760736652298,-240.586526,0.0004,120]
[391705433,1760736652307,-151.0,0.0004,120]
[391705434,1760736652316,-151.0,0.0004,120]
[391705435,1760736652326,-290.746674,0.0004,120]
[391705436,1760736652335,-151.0,0.0004,120]
[391705437,1760736652345,-201.739994,0.0004,120]
[391705438,1760736652354,-201.739994,0.0004,120]
[391705439,1760736652364,-887.215651,0.0004,120]
[391705440,1760736652373,-201.739994,0.0004,120]
[391705441,1760736652383,-887.215651,0.0004,120]
[391705442,1760736652392,-201.739994,0.0004,120]
[391705443,1760736652405,-887.215651,0.0004,120]
[391705444,1760736652415,-151.0,0.0004,120]
[391705445,1760736652424,-887.215651,0.0004,120]
[391705446,1760736652434,-151.0,0.0004,120]
[391705447,1760736652444,-151.0,0.0004,120]
[391705448,1760736652454,-151.0,0.0004,120]
[391705449,1760736652465,-377.028455,0.0004,120]
[391705450,1760736652475,-151.0,0.0004,120]
[391705451,1760736652485,-280.345504,0.0004,120]
[391705452,1760736652495,-377.028455,0.0004,120]
[391705453,1760736652505,-280.345504,0.0004,120]
[391705454,1760736652515,-280.345504,0.0004,120]
[391705455,1760736652525,-377.028455,0.0004,120]
[391705456,1760736652535,-280.345504,0.0004,120]
[391705457,1760736652545,-377.028455,0.0004,120]
[391705458,1760736652554,-151.0,0.0004,120]
[391705459,1760736652564,-151.0,0.0004,120]
[391705460,1760736652574,-151.0,0.0004,120]
[391705461,1760736652584,-201.989912,0.0004,120]
[391705462,1760736652594,-177.804928,0.0004,120]
[391705463,1760736652603,-177.804928,0.0004,120]
[391705464,1760736652614,-177.804928,0.0004,120]
[391705465,1760736652625,-177.804928,0.0004,120]
[391705466,1760736652635,-193.9679,0.0004,120]
[391705467,1760736652644,-193.9679,0.0004,120]
[391705468,1760736652654,-193.9679,0.0004,120]
[391705469,1760736652663,-193.9679,0.0004,120]
[391705470,1760736652673,-1512.0,0.00040002,20]
[391705471,1760736652686,-191.85004,0.00040045,30]
[391705472,1760736652696,-1000.0,0.000401,25]
[391705473,1760736652705,-889.11750703,0.00040121,5]
[391705474,1760736652715,-1000.0,0.00040121,5]
[391705475,1760736652727,-478.38,0.00040169,120]
[391705476,1760736652737,-500.0,0.00040187,10]
[391705477,1760736652746,-1000.0,0.000402,60]
[391705478,1760736652757,-1151.24,0.000402,30]
[391705479,1760736652767,-500.0,0.00040221,17]
[391705480,1760736652778,-500.0,0.00040221,2]
[391705481,1760736652787,-500.0,0.00040222,10]
[391705482,1760736652800,-191.85004,0.00040245,30]
[391705483,1760736652810,-150.99,0.0004029,2]
[391705484,1760736652820,-1474.95,0.0004029,2]
[391705485,1760736652830,-299.99,0.0004029,120]
[391705486,1760736652840,-200.0,0.00040298,2]
[391705487,1760736652850,-200.0,0.00040298,2]
[391705488,1760736652859,-200.0,0.00040298,2]
[391705489,1760736652869,-200.0,0.00040298,2]
[391705490,1760736652879,-1000.0,0.000403,60]
[391705491,1760736652889,-1512.0,0.00040395,20]
[391705492,1760736652899,-191.85004,0.00040445,30]
[391705493,1760736652909,-500.0,0.00040461,10]
[391705494,1760736652918,-500.0,0.00040496,10]
[391705495,1760736652928,-1000.0,0.000405,60]
[391705496,1760736652938,-1000.0,0.00040521,5]
[391705497,1760736652948,-151.0,0.00040551,14]
[391705498,1760736652958,-300.0,0.00040553,10]
[391705499,1760736652968,-300.0,0.00040554,120]
[391705500,1760736652979,-300.0,0.00040554,120]
[391705501,1760736652989,-300.0,0.00040554,120]
[391705502,1760736652999,-300.0,0.00040554,120]
[391705503,1760736653009,-300.0,0.00040554,120]
[391705504,1760736653020,-300.0,0.00040554,120]
[391705505,1760736653030,-300.0,0.00040554,120]
[391705506,1760736653040,-300.0,0.00040554,120]
[391705507,1760736653050,-300.0,0.00040554,120]
[391705508,1760736653061,-300.0,0.00040554,120]
[391705509,1760736653071,-300.0,0.00040554,120]
[391705510,1760736653080,-300.0,0.00040554,120]
[391705511,1760736653090,-300.0,0.00040554,120]
[391705512,1760736653099,-300.0,0.00040554,120]
[391705513,1760736653109,-300.0,0.00040554,120]
[391705514,1760736653119,-300.0,0.00040554,120]
[391705515,1760736653129,-300.0,0.00040554,120]
[391705516,1760736653139,-300.0,0.00040554,120]
[391705517,1760736653149,-300.0,0.00040554,120]
[391705518,1760736653158,-311.164976,0.00040554,120]
[391705519,1760736653171,-98354.4954,0.00040554,2]
[391705520,1760736653181,-151.0,0.000406,120]
[391705521,1760736653190,-191.85004,0.00040645,30]
[391705522,1760736653201,-3868.88,0.00040654,2]
[391705523,1760736653210,-200.0,0.00040701,2]
[391705524,1760736653220,-200.0,0.00040701,2]
[391705525,1760736653230,-200.0,0.00040701,2]
[391705526,1760736653240,-200.0,0.00040701,2]
[391705527,1760736653250,-500.0,0.00040735,10]
[391705528,1760736653260,-500.0,0.0004077,10]
[391705529,1760736653269,-267.22547569,0.000408,60]
[391705530,1760736653279,-5133.69,0.000408,14]
[391705531,1760736653288,-191.85004,0.00040845,30]
[391705532,1760736653299,-1153.18,0.000409,2]
[391705533,1760736653308,-400.0,0.0004097,3]
[391705534,1760736653318,-237631.10462953,0.00040998,60]
[391705535,1760736653327,-1000.0,0.00041,30]
[391705536,1760736653337,-1156.0,0.00041,10]
[391705537,1760736653347,-2571.18153825,0.00041,30]
[391705538,1760736653357,-172.22522765,0.00041,120]
[391705539,1760736653370,-500.0,0.00041009,10]
[391705540,1760736653380,-218.65,0.00041015,14]
[391705541,1760736653390,-500.0,0.00041044,10]
[391705542,1760736653399,-191.85004,0.00041045,30]
[391705543,1760736653602,-1500.0,0.00041068,5]
[391705544,1760736653612,-1234.0,0.00041083,14]
[391705545,1760736653621,-1234.0,0.00041083,14]
[391705546,1760736653631,-1234.0,0.00041083,14]
[391705547,1760736653640,-1234.0,0.00041083,14]
[391705548,1760736653650,-1234.0,0.00041083,14]
[391705549,1760736653659,-8659.62,0.00041095,7]
[391705550,1760736653668,-500.0,0.00041096,30]
[391705551,1760736653678,-500.0,0.00041096,30]
[391705552,1760736653692,-500.0,0.00041096,30]
[391705553,1760736653702,-500.0,0.00041096,30]
[391705554,1760736653711,-500.0,0.00041096,30]
[391705555,1760736653721,-500.0,0.00041096,30]
[391705556,1760736653731,-500.0,0.00041096,30]
[391705557,1760736653740,-500.0,0.00041096,30]
[391705558,1760736653749,-500.0,0.00041096,30]
[391705559,1760736653761,-500.0,0.00041096,30]
[391705560,1760736653771,-500.0,0.00041096,30]
[391705561,1760736653781,-500.0,0.00041096,30]
[391705562,1760736653790,-500.0,0.00041096,30]
[391705563,1760736653799,-500.0,0.00041096,30]
[391705564,1760736653809,-500.0,0.00041096,30]
[391705565,1760736653818,-500.0,0.00041096,30]
[391705566,1760736653828,-500.0,0.00041096,30]
[391705567,1760736653839,-500.0,0.00041096,30]
[391705568,1760736653848,-500.0,0.00041096,30]
[391705569,1760736653858,-500.0,0.00041096,30]
[391705570,1760736653867,-500.0,0.00041096,30]
[391705571,1760736653876,-500.0,0.00041096,30]
[391705572,1760736653886,-500.0,0.00041096,30]
[391705573,1760736653896,-500.0,0.00041096,30]
[391705574,1760736653906,-500.0,0.00041096,30]
[391705575,1760736653915,-500.0,0.00041096,30]
[391705576,1760736653925,-500.0,0.00041096,30]
[391705577,1760736653936,-500.0,0.00041096,30]
[391705578,1760736653946,-500.0,0.00041096,30]
[391705579,1760736653955,-500.0,0.00041096,30]
[391705580,1760736653966,-500.0,0.00041096,30]
[391705581,1760736653975,-500.0,0.00041096,30]
[391705582,1760736653986,-500.0,0.00041096,30]
[391705583,1760736653995,-500.0,0.00041096,30]
[391705584,1760736654005,-500.0,0.00041096,30]
[391705585,1760736654014,-500.0,0.00041096,30]
[391705586,1760736654024,-500.0,0.00041096,30]
[391705587,1760736654034,-500.0,0.00041096,30]
[391705588,1760736654043,-500.0,0.00041096,30]
[391705589,1760736654053,-500.0,0.00041096,30]
[391705590,1760736654062,-500.0,0.00041096,30]
[391705591,1760736654071,-500.0,0.00041096,30]
[391705592,1760736654081,-500.0,0.00041096,30]
[391705593,1760736654090,-500.0,0.00041096,30]
[391705594,1760736654099,-500.0,0.00041096,30]
[391705595,1760736654110,-500.0,0.00041096,30]
[391705596,1760736654119,-500.0,0.00041096,30]
[391705597,1760736654129,-500.0,0.00041096,30]
[391705598,1760736654139,-500.0,0.00041096,30]
[391705599,1760736654148,-500.0,0.00041096,30]
[391705600,1760736654158,-500.0,0.00041096,30]
[391705601,1760736654168,-500.0,0.00041096,30]
[391705602,1760736654177,-500.0,0.00041096,30]
[391705603,1760736654187,-500.0,0.00041096,30]
[391705604,1760736654196,-500.0,0.00041096,30]
[391705605,1760736654206,-500.0,0.00041096,30]
[391705606,1760736654216,-500.0,0.00041096,30]
[391705607,1760736654225,-500.0,0.00041096,30]
[391705608,1760736654235,-500.0,0.00041096,30]
[391705609,1760736654245,-500.0,0.00041096,30]
[391705610,1760736654253,-500.0,0.00041096,30]
[391705611,1760736654263,-500.0,0.00041096,30]
[391705612,1760736654272,-500.0,0.00041096,30]
[391705613,1760736654281,-500.0,0.00041096,30]
[391705614,1760736654291,-500.0,0.00041096,30]
[391705615,1760736654300,-500.0,0.00041096,30]
[391705616,1760736654309,-500.0,0.00041096,30]
[391705617,1760736654318,-500.0,0.00041096,30]
[391705618,1760736654327,-500.0,0.00041096,30]
[391705619,1760736654337,-500.0,0.00041096,30]
[391705620,1760736654346,-500.0,0.00041096,30]
[391705621,1760736654355,-500.0,0.00041096,30]
[391705622,1760736654364,-500.0,0.00041096,30]
[391705623,1760736654373,-484.0,0.00041096,30]
[391705624,1760736654383,-200.0,0.00041096,20]
[391705625,1760736654392,-200.0,0.00041096,20]
[391705626,1760736654401,-200.0,0.00041096,20]
[391705627,1760736654411,-670.971821,0.00041096,120]
[391705628,1760736654421,-670.971821,0.00041096,120]
[391705629,1760736654430,-151.0,0.00041096,120]
[391705630,1760736654440,-670.971821,0.00041096,120]
[391705631,1760736654449,-300.528512,0.00041096,120]
[391705632,1760736654459,-670.971821,0.00041096,120]
[391705633,1760736654468,-154.421392,0.00041096,120]
[391705634,1760736654477,-680.599913,0.00041096,120]
[391705635,1760736654487,-154.421392,0.00041096,120]
[391705636,1760736654496,-240.774713,0.00041096,120]
[391705637,1760736654506,-680.599913,0.00041096,120]
[391705638,1760736654515,-154.421392,0.00041096,120]
[391705639,1760736654525,-240.774713,0.00041096,120]
[391705640,1760736654535,-151.0,0.00041096,120]
[391705641,1760736654544,-680.599913,0.00041096,120]
[391705642,1760736654553,-154.421392,0.00041096,120]
[391705643,1760736654563,-240.774713,0.00041096,120]
[391705644,1760736654573,-283.832494,0.00041096,120]
[391705645,1760736654582,-680.599913,0.00041096,120]
[391705646,1760736654593,-151.0,0.00041096,120]
[391705647,1760736654603,-240.774713,0.00041096,120]
[391705648,1760736654613,-283.832494,0.00041096,120]
[391705649,1760736654622,-292.436263,0.00041096,120]
[391705650,1760736654631,-283.832494,0.00041096,120]
[391705651,1760736654641,-151.0,0.00041096,120]
[391705652,1760736654650,-151.0,0.00041096,120]
[391705653,1760736654660,-283.832494,0.00041096,120]
[391705654,1760736654669,-151.0,0.00041096,120]
[391705655,1760736654679,-151.0,0.00041096,120]
[391705656,1760736654692,-151.0,0.00041096,30]
[391705657,1760736654701,-151.0,0.00041096,30]
[391705658,1760736654710,-500.0,0.000411,2]
[391705659,1760736654720,-563.0,0.000411,2]
[391705660,1760736654731,-154.0,0.000411,120]
[391705661,1760736654741,-200.0,0.00041108,2]
[391705662,1760736654750,-200.0,0.00041108,2]
[391705663,1760736654762,-200.0,0.00041108,2]
[391705664,1760736654772,-2374.28151821,0.00041108,37]
[391705665,1760736654782,-200.0,0.00041108,2]
[391705666,1760736654791,-150.0,0.00041113,2]
[391705667,1760736654801,-1000.0,0.00041113,2]
[391705668,1760736654810,-1000.0,0.00041113,2]
[391705669,1760736654819,-1000.0,0.00041113,2]
[391705670,1760736654828,-1000.0,0.00041113,2]
[391705671,1760736654838,-1000.0,0.00041113,2]
[391705672,1760736654847,-172.0,0.00041113,2]
[391705673,1760736654858,-300.0,0.00041148,30]
[391705674,1760736654867,-300.0,0.00041149,30]
[391705675,1760736654876,-1091.0,0.00041154,30]
[391705676,1760736654886,-300.0,0.00041159,30]
[391705677,1760736654895,-322.6107,0.0004116,2]
[391705678,1760736654905,-1000.0,0.0004116,2]
[391705679,1760736654914,-250.0,0.0004116,2]
[391705680,1760736654924,-1000.0,0.0004116,2]
[391705681,1760736654934,-1000.0,0.0004116,2]
[391705682,1760736654943,-721.12765535,0.0004116,2]
[391705683,1760736654953,-1000.0,0.0004116,2]
[391705684,1760736654963,-250.0,0.0004116,2]
[391705685,1760736654973,-1000.0,0.0004116,2]
[391705686,1760736654983,-1000.0,0.0004116,2]
[391705687,1760736654992,-1000.0,0.0004116,2]
[391705688,1760736655002,-250.0,0.0004116,2]
[391705689,1760736655011,-1000.0,0.0004116,2]
[391705690,1760736655021,-1000.0,0.0004116,2]
[391705691,1760736655030,-1000.0,0.0004116,2]
[391705692,1760736655039,-250.0,0.0004116,2]
[391705693,1760736655049,-1000.0,0.0004116,2]
[391705694,1760736655058,-1000.0,0.0004116,2]
[391705695,1760736655067,-1000.0,0.0004116,2]
[391705696,1760736655076,-250.0,0.0004116,2]
[391705697,1760736655086,-1000.0,0.0004116,2]
[391705698,1760736655095,-1000.0,0.0004116,2]
[391705699,1760736655104,-1000.0,0.0004116,2]
[391705700,1760736655114,-250.0,0.0004116,2]
[391705701,1760736655123,-1000.0,0.0004116,2]
[391705702,1760736655133,-1000.0,0.0004116,2]
[391705703,1760736655143,-1000.0,0.0004116,2]
[391705704,1760736655152,-1000.0,0.0004116,2]
[391705705,1760736655161,-1000.0,0.0004116,2]
[391705706,1760736655170,-250.0,0.0004116,2]
[391705707,1760736655179,-1000.0,0.0004116,2]
[391705708,1760736655188,-1000.0,0.0004116,2]
[391705709,1760736655198,-250.0,0.0004116,2]
[391705710,1760736655208,-1000.0,0.0004116,2]
[391705711,1760736655217,-1000.0,0.0004116,2]
[391705712,1760736655226,-1000.0,0.0004116,2]
[391705713,1760736655236,-1000.0,0.0004116,2]
[391705714,1760736655245,-250.0,0.0004116,2]
[391705715,1760736655254,-1000.0,0.0004116,2]
[391705716,1760736655263,-1000.0,0.0004116,2]
[391705717,1760736655273,-250.0,0.0004116,2]
[391705718,1760736655282,-1000.0,0.0004116,2]
[391705719,1760736655292,-1000.0,0.0004116,2]
[391705720,1760736655301,-239.79609754,0.0004116,2]
[391705721,1760736655311,-151.0,0.0004116,2]
[391705722,1760736655320,-250.0,0.0004116,2]
[391705723,1760736655330,-1000.0,0.0004116,2]
[391705724,1760736655339,-151.0,0.0004116,2]
[391705725,1760736655348,-1000.0,0.0004116,2]
[391705726,1760736655358,-298.0,0.0004116,2]
[391705727,1760736655367,-151.0,0.0004116,2]
[391705728,1760736655376,-9552.16786547,0.0004116,2]
[391705729,1760736655385,-250.0,0.0004116,2]
[391705730,1760736655395,-250.0,0.0004116,2]
[391705731,1760736655404,-3000.0,0.0004116,2]
[391705732,1760736655413,-250.0,0.0004116,2]
[391705733,1760736655422,-3000.0,0.0004116,2]
[391705734,1760736655431,-161.87821488,0.0004116,2]
[391705735,1760736655441,-250.0,0.0004116,2]
[391705736,1760736655450,-3000.0,0.0004116,2]
[391705737,1760736655459,-250.0,0.0004116,2]
[391705738,1760736655468,-337.04050925,0.0004116,2]
[391705739,1760736655478,-250.0,0.0004116,2]
[391705740,1760736655487,-3000.0,0.0004116,2]
[391705741,1760736655496,-250.0,0.0004116,2]
[391705742,1760736655505,-250.0,0.0004116,2]
[391705743,1760736655515,-3000.0,0.0004116,2]
[391705744,1760736655524,-250.0,0.0004116,2]
[391705745,1760736655533,-250.0,0.0004116,2]
[391705746,1760736655542,-151.0,0.0004116,2]
[391705747,1760736655551,-3000.0,0.0004116,2]
[391705748,1760736655560,-250.0,0.0004116,2]
[391705749,1760736655569,-151.0,0.0004116,2]
[391705750,1760736655578,-250.0,0.0004116,2]
[391705751,1760736655588,-3000.0,0.0004116,2]
[391705752,1760736655597,-151.0,0.0004116,2]
[391705753,1760736655606,-3000.0,0.0004116,2]
[391705754,1760736655615,-250.0,0.0004116,2]
[391705755,1760736655624,-250.0,0.0004116,2]
[391705756,1760736655633,-151.0,0.0004116,2]
[391705757,1760736655642,-3000.0,0.0004116,2]
[391705758,1760736655651,-250.0,0.0004116,2]
[391705759,1760736655660,-151.0,0.0004116,2]
[391705760,1760736655669,-250.0,0.0004116,2]
[391705761,1760736655679,-250.0,0.0004116,2]
[391705762,1760736655692,-3000.0,0.0004116,2]
[391705763,1760736655701,-151.0,0.0004116,2]
[391705764,1760736655711,-250.0,0.0004116,2]
[391705765,1760736655719,-250.0,0.0004116,2]
[391705766,1760736655730,-3000.0,0.0004116,2]
[391705767,1760736655739,-151.0,0.0004116,2]
[391705768,1760736655748,-250.0,0.0004116,2]
[391705769,1760736655760,-151.0,0.0004116,2]
[391705770,1760736655769,-250.0,0.0004116,2]
[391705771,1760736655778,-151.0,0.0004116,2]
[391705772,1760736655788,-151.0,0.0004116,2]
[391705773,1760736655797,-250.0,0.0004116,2]
[391705774,1760736655806,-151.0,0.0004116,2]
[391705775,1760736655816,-151.0,0.0004116,2]
[391705776,1760736655825,-693.3919763,0.0004116,2]
[391705777,1760736655834,-500.0,0.0004116,2]
[391705778,1760736655844,-500.0,0.0004116,2]
[391705779,1760736655853,-500.0,0.0004116,2]
[391705780,1760736655862,-500.0,0.0004116,2]
[391705781,1760736655871,-500.0,0.0004116,2]
[391705782,1760736655880,-151.0,0.0004116,2]
[391705783,1760736655889,-500.0,0.0004116,2]
[391705784,1760736655898,-277.35679052,0.0004116,2]
[391705785,1760736655907,-500.0,0.0004116,2]
[391705786,1760736655916,-500.0,0.0004116,2]
[391705787,1760736655925,-500.0,0.0004116,2]
[391705788,1760736655935,-500.0,0.0004116,2]
[391705789,1760736655944,-500.0,0.0004116,2]
[391705790,1760736655953,-1575.0,0.000412,2]
[391705791,1760736655966,-5000.0,0.00041202,7]
[391705792,1760736655976,-9905.5980765,0.00041215,2]
[391705793,1760736655986,-200.0,0.00041232,2]
[391705794,1760736655995,-191.85004,0.00041245,30]
[391705795,1760736656004,-300.0,0.00041259,30]
[391705796,1760736656013,-10272.10520533,0.0004127,2]
[391705797,1760736656022,-500.0,0.00041283,120]
[391705798,1760736656030,-155.17,0.00041284,14]
[391705799,1760736656037,-500.0,0.00041318,120]
[391705800,1760736656047,-10652.17309792,0.00041325,2]
[391705801,1760736656056,-11046.30350255,0.0004138,2]
[391705802,1760736656065,-8541.10659745,0.00041399,120]
[391705803,1760736656074,-300.0,0.000414,30]
[391705804,1760736656084,-151.0,0.000414,120]
[391705805,1760736656093,-1151.24,0.000414,30]
[391705806,1760736656102,-155.17,0.00041409,14]
[391705807,1760736656239,-11455.01673214,0.00041435,2]
[391705808,1760736656249,-216388.9372,0.00041444,7]
[391705809,1760736656259,-151.0,0.00041444,120]
[391705810,1760736656268,-3720.645209,0.00041444,120]
[391705811,1760736656277,-3720.645209,0.00041444,120]
[391705812,1760736656286,-3720.645209,0.00041444,120]
[391705813,1760736656295,-663.926566,0.00041444,120]
[391705814,1760736656304,-3720.645209,0.00041444,120]
[391705815,1760736656313,-663.926566,0.00041444,120]
[391705816,1760736656323,-663.926566,0.00041444,120]
[391705817,1760736656332,-151.0,0.00041444,120]
[391705818,1760736656341,-663.926566,0.00041444,120]
[391705819,1760736656350,-5482.815337,0.00041444,120]
[391705820,1760736656359,-151.0,0.00041444,120]
[391705821,1760736656368,-5482.815337,0.00041444,120]
[391705822,1760736656378,-5482.815337,0.00041444,120]
[391705823,1760736656387,-5482.815337,0.00041444,120]
[391705824,1760736656396,-151.0,0.00041444,120]
[391705825,1760736656405,-275.353936,0.00041444,120]
[391705826,1760736656415,-151.0,0.00041444,120]
[391705827,1760736656425,-151.0,0.00041444,120]
[391705828,1760736656434,-275.353936,0.00041444,120]
[391705829,1760736656443,-151.0,0.00041444,120]
[391705830,1760736656452,-151.0,0.00041444,120]
[391705831,1760736656462,-275.353936,0.00041444,120]
[391705832,1760736656471,-741.469166,0.00041444,120]
[391705833,1760736656480,-972.62092,0.00041444,120]
[391705834,1760736656489,-151.0,0.00041444,120]
[391705835,1760736656498,-275.353936,0.00041444,120]
[391705836,1760736656518,-741.469166,0.00041444,120]
[391705837,1760736656527,-972.62092,0.00041444,120]
[391705838,1760736656538,-741.469166,0.00041444,120]
[391705839,1760736656547,-972.62092,0.00041444,120]
[391705840,1760736656557,-741.469166,0.00041444,120]
[391705841,1760736656566,-972.62092,0.00041444,120]
[391705842,1760736656576,-151.0,0.00041444,120]
[391705843,1760736656586,-151.0,0.00041444,120]
[391705844,1760736656595,-359.280629,0.00041444,120]
[391705845,1760736656604,-359.280629,0.00041444,120]
[391705846,1760736656614,-151.0,0.00041444,120]
[391705847,1760736656623,-359.280629,0.00041444,120]
[391705848,1760736656633,-359.280629,0.00041444,120]
[391705849,1760736656642,-151.0,0.00041444,120]
[391705850,1760736656652,-151.0,0.00041444,120]
[391705851,1760736656661,-151.0,0.00041444,120]
[391705852,1760736656671,-201.84880705,0.00041444,120]
[391705853,1760736656682,-151.0,0.00041444,30]
[391705854,1760736656694,-151.0,0.00041444,30]
[391705855,1760736656703,-151.0,0.00041444,120]
[391705856,1760736656712,-218.027628,0.00041444,20]
[391705857,1760736656723,-218.027628,0.00041444,20]
[391705858,1760736656732,-342.892241,0.00041444,120]
[391705859,1760736656742,-711.887367,0.00041444,120]
[391705860,1760736656753,-218.027628,0.00041444,20]
[391705861,1760736656763,-342.892241,0.00041444,120]
[391705862,1760736656773,-711.887367,0.00041444,120]
[391705863,1760736656783,-218.027628,0.00041444,20]
[391705864,1760736656792,-711.887367,0.00041444,120]
[391705865,1760736656802,-342.892241,0.00041444,120]
[391705866,1760736656811,-711.887367,0.00041444,120]
[391705867,1760736656821,-342.892241,0.00041444,120]
[391705868,1760736656830,-151.0,0.00041444,120]
[391705869,1760736656840,-151.0,0.00041444,120]
[391705870,1760736656850,-211.970065,0.00041444,120]
[391705871,1760736656859,-211.970065,0.00041444,120]
[391705872,1760736656869,-211.970065,0.00041444,120]
[391705873,1760736656878,-211.970065,0.00041444,120]
[391705874,1760736656889,-191.85004,0.00041445,30]
[391705875,1760736656899,-11878.85235123,0.0004149,2]
[391705876,1760736656908,-639.5001,0.000415,7]
[391705877,1760736656918,-200.0,0.00041519,2]